[Event "Chinese League Div-A Rapid 2022"]
[Site "Fuling,Chongqing"]
[Date "2022.09.16"]
[Round "9.20"]
[White "Zhang, Lanlin"]
[Black "Guo, Qi"]
[Result "0-1"]
[ECO "C56"]
[WhiteElo "2135"]
[BlackElo "2406"]
[Annotator "TA"]
[PlyCount "120"]
[EventDate "2022.09.07"]
[EventType "team-tourn"]
[EventCountry "CHN"]
[SourceTitle "playchess.com"]
[Source "ChessBase"]
[SourceQuality "1"]
[TimeControl "1500+10"]

{[%evp 23,120,0,-6,-3,-1,-12,-14,-7,0,0,0,0,-4,-4,0,0,0,0,0,0,0,-17,0,-14,0,0,66,70,85,68,82,72,122,82,133,117,131,123,274,76,106,79,87,78,137,66,83,64,68,64,42,4,5,0,0,0,0,0,0,0,3,7,0,0,0,-8,-8,-8,-8,-8,0,0,-8,-8,-8,-12,-12,-14,-14,-15,-22,-1008,-970,-1524,-1326,-2728,-2762,-29953,-29958,-29985,-29986,-29986,-29987,-29987,-29988,-29988,-29989,-29991,-29990]} 1. e4 {[%emt 0:00:02]} e5 {[%emt 0:00:01]} 2. Nf3 {[%emt 0:00:03]} Nc6 {[%emt 0:00:02]} 3. d4 {[%emt 0:00:06]} exd4 {[%emt 0:00:05]} 4. Bc4 {[%emt 0:00:01]} Nf6 {[%emt 0:02:05]} 5. O-O {[%emt 0:00:02]} Nxe4 {[%emt 0:01:05]} 6. Re1 {[%emt 0:00:03]} d5 {[%emt 0:00:02]} 7. Bxd5 {[%emt 0:00:01]} Qxd5 {[%emt 0:00:02]} 8. Nc3 {[%emt 0:00:01]} Qa5 {[%emt 0:01:40]} 9. Nxe4 {[%emt 0:00:11]} Be6 {[%emt 0:00:02]} 10. Neg5 {[%emt 0:00:39]} O-O-O {[%emt 0:00:05]} 11. Nxe6 {[%emt 0:00:04]} fxe6 {[%emt 0:00:04]} 12. Rxe6 {[%emt 0:00:15]} Be7 {[%emt 0:00:24]} 13. Bd2 {[%emt 0:01:28] C56: Two Knights: 4 d4 exd4 5 0-0 Nxe4.} Qd5 {[%emt 0:00:06]} 14. Qe2 {[%emt 0:01:04][%cal Oe6c6]} Bf6 {[%emt 0:00:02]} (14... d3 {is more complex.} 15. cxd3 Bf6 16. Bf4 Qxd3 17. Bg5 Bxg5 18. Nxg5 h6) 15. Qe4 {[%emt 0:02:07] The position is equal.} Qxe4 {[%emt 0:01:41]} 16. Rxe4 {[%emt 0:00:01]} Rd5 {[%emt 0:00:13]} 17. Rae1 {[%emt 0:00:18]} Rc5 {[%emt 0:01:32]} 18. Rc1 {[%emt 0:01:06]} Rd8 {[%emt 0:00:20] [#]} 19. g4 $146 {[%emt 0:00:37][%cal Bg2g4,Bg4g5][%mdl 32]} ({Predecessor:} 19. c3 dxc3 20. Bxc3 Bxc3 21. Rxc3 Rxc3 22. bxc3 Rd3 23. Re3 Rxe3 24. fxe3 Kd7 25. Kf2 {½-½ (32) Celik,E (1761)-Oner,O (2037) Konya 2018}) 19... a5 {[%emt 0:02:09]} 20. Kg2 {[%emt 0:02:21]} g6 {[%emt 0:03:12]} 21. a3 {[%emt 0:01:16]} a4 {[%emt 0:00:49]} 22. g5 {[%emt 0:00:54]} Bh8 {[%emt 0:00:42]} 23. Ne1 {[%emt 0:01:39]} Ne5 {[%emt 0:01:53]} 24. Nd3 {[%emt 0:01:58]} Rb5 {[%emt 0:00:07]} (24... Nxd3 $11 25. cxd3 Rxc1 26. Bxc1 Bg7) 25. Bf4 $14 {[%emt 0:00:20][%cal Rf4e5]} Nc6 {[%emt 0:01:03]} 26. Rce1 {[%emt 0:00:32]} Rf5 {[%emt 0:00:02]} 27. h4 {[%emt 0:02:12]} b6 {[%emt 0:00:04]} (27... Bg7 $142) 28. Bg3 {[%emt 0:01:11]} Rb5 {[%emt 0:02:05]} (28... Bg7 $142) 29. Kh3 {[%emt 0:00:57]} Rf5 {[%emt 0:01:50]} 30. Kg4 {[%emt 0:01:42]} Bg7 $2 {[%emt 0:00:33] [#]} (30... Rf7 $16 {was worth a try.} 31. h5 gxh5+ 32. Kxh5 Kd7) 31. Bf4 $2 {[%emt 0:00:25]} (31. Re6 $1 $18 {[%cal Re6c6] and the rest is easy.} Kb7 32. h5) 31... Rf7 {[%emt 0:00:33]} 32. Rh1 {[%emt 0:00:55]} Bf8 {[%emt 0:00:17]} 33. h5 {[%emt 0:01:21]} Bd6 {[%emt 0:00:02]} 34. Bd2 {[%emt 0:00:03]} (34. hxg6 $16 hxg6 35. Rh6) 34... Re7 {[%emt 0:00:51]} 35. Rxe7 {[%emt 0:00:58]} Nxe7 {[%emt 0:00:01]} 36. hxg6 {[%emt 0:00:01]} hxg6 {[%emt 0:00:02]} 37. Rh7 {[%emt 0:00:02]} c5 {[%emt 0:00:06]} 38. Bf4 {[%emt 0:01:34] aiming for Bxd6.} Nc6 {[%emt 0:00:02]} 39. Bxd6 {[%emt 0:01:39]} Rxd6 $11 {[%emt 0:00:02][%mdl 4096] Endgame KRN-KRN} 40. f4 {[%emt 0:00:01]} c4 {[%emt 0:00:25]} 41. Nf2 {[%emt 0:00:03]} ({But not} 41. Ne5 Nxe5+ 42. fxe5 Rd5 $17) 41... d3 {[%emt 0:00:11]} 42. cxd3 {[%emt 0:00:02]} cxd3 {[%emt 0:00:01]} 43. Rh1 {[%emt 0:00:12]} Na5 {[%emt 0:01:41]} 44. Ne4 {[%emt 0:01:23]} Rd4 {[%emt 0:00:04]} 45. Nd2 {[%emt 0:00:03]} b5 {[%emt 0:01:07]} 46. Kf3 {[%emt 0:00:09]} Nc4 {[%emt 0:00:02]} 47. Nxc4 {[%emt 0:00:42]} bxc4 {[%emt 0:00:01] KR-KR} 48. Ke3 {[%emt 0:00:08]} Rd6 {[%emt 0:00:07]} 49. Kd2 {[%emt 0:00:03]} (49. Rg1 {looks sharper.} Kd7 50. f5 d2 51. fxg6 d1=Q 52. Rxd1 Rxd1 53. g7) 49... Kd7 {[%emt 0:00:36] ...Re6 is the strong threat.} 50. Kc3 {[%emt 0:00:13]} Ke6 {[%emt 0:00:05] And now ...Kf5 would win.} 51. Kxc4 {[%emt 0:00:19]} Kf5 {[%emt 0:00:02]} 52. Rd1 {[%emt 0:00:10][%mdl 8192] [#]} (52. Kc3 $11) 52... Ke4 $1 $19 {[%emt 0:00:05]} 53. f5 {[%emt 0:00:10]} gxf5 {[%emt 0:00:06][%cal Bg6f5,Bf5f4,Bf4f3][%mdl 32]} 54. b3 {[%emt 0:00:12]} axb3 {[%emt 0:00:15] Hoping for ...b2.} 55. Kxb3 {[%emt 0:00:01]} Ke3 {[%emt 0:00:14] Black mates.} 56. Rh1 {[%emt 0:00:11]} d2 {[%emt 0:00:06]} 57. Kc2 {[%emt 0:00:03]} Rc6+ {[%emt 0:00:02]} 58. Kb2 {[%emt 0:00:01]} f4 {[%emt 0:00:10]} 59. a4 {[%emt 0:00:25]} f3 {[%emt 0:00:06]} 60. a5 {[%emt 0:00:15]} Ke2 {[%emt 0:00:03] Never resign too early!  Weighted Error Value: White=0.53/Black=0.10 (very precise)} 0-1

[Event "Chinese League Div-A Rapid 2022"]
[Site "Fuling,Chongqing"]
[Date "2022.09.16"]
[Round "9.21"]
[White "Xu, Minghui"]
[Black "Zhou, Weiqi"]
[Result "0-1"]
[ECO "A17"]
[WhiteElo "2408"]
[BlackElo "2597"]
[Annotator "ChessBase"]
[PlyCount "90"]
[EventDate "2022.09.07"]
[EventType "team-tourn"]
[EventCountry "CHN"]
[SourceTitle "playchess.com"]
[Source "ChessBase"]
[SourceQuality "1"]
[TimeControl "1500+10"]

1. Nf3 {[%emt 0:00:03]} Nf6 {[%emt 0:00:29]} 2. c4 {[%emt 0:00:12]} e6 {[%emt 0:00:25]} 3. Nc3 {[%emt 0:00:03]} d5 {[%emt 0:00:42]} 4. e3 {[%emt 0:00:17]} b6 {[%emt 0:00:57]} 5. b3 {[%emt 0:00:06]} Bb7 {[%emt 0:00:09]} 6. Bb2 {[%emt 0:00:05]} Nbd7 {[%emt 0:00:23]} 7. cxd5 {[%emt 0:02:05]} exd5 {[%emt 0:00:04]} 8. g3 {[%emt 0:01:48]} d4 {[%emt 0:01:12]} 9. Nb5 {[%emt 0:00:10]} dxe3 {[%emt 0:01:49]} 10. dxe3 {[%emt 0:01:32]} a6 {[%emt 0:03:05]} 11. Nbd4 {[%emt 0:02:51]} Bb4+ {[%emt 0:00:24]} 12. Ke2 {[%emt 0:00:02]} O-O {[%emt 0:02:55]} 13. Bh3 {[%emt 0:01:19]} Ne4 {[%emt 0:01:38]} 14. Rc1 {[%emt 0:02:21]} c5 {[%emt 0:00:56]} 15. Nf5 {[%emt 0:01:38]} Ndf6 {[%emt 0:00:11]} 16. a3 {[%emt 0:04:30]} Ba5 {[%emt 0:00:09]} 17. Qc2 {[%emt 0:00:48]} Qe8 {[%emt 0:01:10]} 18. Rhd1 {[%emt 0:00:27]} Qb5+ {[%emt 0:03:30]} 19. Qc4 {[%emt 0:00:24]} Rfd8 {[%emt 0:00:43]} 20. Ne5 {[%emt 0:03:23]} Rxd1 {[%emt 0:01:28]} 21. Rxd1 {[%emt 0:00:02]} Bc3 {[%emt 0:00:06]} 22. Rd3 {[%emt 0:00:17]} Qxc4 {[%emt 0:00:59]} 23. Nxc4 {[%emt 0:00:18]} Bxb2 {[%emt 0:00:13]} 24. Nxb2 {[%emt 0:00:18]} Ng5 {[%emt 0:00:18]} 25. Bf1 {[%emt 0:03:13]} Bf3+ {[%emt 0:00:26]} 26. Ke1 {[%emt 0:00:30]} Be4 {[%emt 0:00:02]} 27. Nd6 {[%emt 0:00:40]} Bxd3 {[%emt 0:00:28]} 28. Bxd3 {[%emt 0:00:03]} Rd8 {[%emt 0:01:10]} 29. Nb7 {[%emt 0:00:21]} Rb8 {[%emt 0:01:04]} 30. Nd6 {[%emt 0:00:06]} b5 {[%emt 0:00:27]} 31. h4 {[%emt 0:00:08]} Nf3+ {[%emt 0:00:10]} 32. Ke2 {[%emt 0:00:05]} Ne5 {[%emt 0:00:02]} 33. Bf5 {[%emt 0:00:08]} g6 {[%emt 0:00:08]} 34. Bh3 {[%emt 0:00:14]} h5 {[%emt 0:00:05]} 35. f4 {[%emt 0:00:19]} Neg4 {[%emt 0:00:14]} 36. e4 {[%emt 0:00:06]} Ne8 {[%emt 0:00:27]} 37. Nxe8 {[%emt 0:00:13]} Rxe8 {[%emt 0:00:01]} 38. Bg2 {[%emt 0:00:09]} Rd8 {[%emt 0:00:31]} 39. e5 {[%emt 0:00:08]} Rd4 {[%emt 0:00:23]} 40. Bb7 {[%emt 0:00:03]} c4 {[%emt 0:00:08]} 41. bxc4 {[%emt 0:00:02]} bxc4 {[%emt 0:00:00]} 42. Bxa6 {[%emt 0:00:11]} c3 {[%emt 0:00:03]} 43. Nd3 {[%emt 0:00:24]} Re4+ {[%emt 0:00:25]} 44. Kd1 {[%emt 0:00:09]} Ne3+ {[%emt 0:00:02]} 45. Kc1 {[%emt 0:00:16]} Ra4 {[%emt 0:00:02]} 0-1

[Event "Chinese League Div-A Rapid 2022"]
[Site "Fuling,Chongqing"]
[Date "2022.09.16"]
[Round "9.22"]
[White "Lu, Shanglei"]
[Black "Lin, Yi"]
[Result "1-0"]
[ECO "A01"]
[WhiteElo "2616"]
[BlackElo "2394"]
[Annotator "ChessBase"]
[PlyCount "73"]
[EventDate "2022.09.07"]
[EventType "team-tourn"]
[EventCountry "CHN"]
[SourceTitle "playchess.com"]
[Source "ChessBase"]
[SourceQuality "1"]
[TimeControl "1500+10"]

1. b3 {[%emt 0:00:02]} e5 {[%emt 0:00:23]} 2. Bb2 {[%emt 0:00:03]} Nc6 {[%emt 0:00:02]} 3. e3 {[%emt 0:00:04]} Nf6 {[%emt 0:00:05]} 4. c4 {[%emt 0:00:24]} Be7 {[%emt 0:00:26]} 5. Nc3 {[%emt 0:01:15]} O-O {[%emt 0:02:42]} 6. Nf3 {[%emt 0:00:48]} Re8 {[%emt 0:01:29]} 7. Qc2 {[%emt 0:00:06]} Bf8 {[%emt 0:01:13]} 8. a3 {[%emt 0:00:11]} a5 {[%emt 0:02:46]} 9. h3 {[%emt 0:00:49]} h6 {[%emt 0:00:17]} 10. g4 {[%emt 0:01:09]} e4 {[%emt 0:02:34]} 11. g5 {[%emt 0:00:19]} exf3 {[%emt 0:03:13]} 12. gxf6 {[%emt 0:00:08]} Qxf6 {[%emt 0:00:15]} 13. Nd5 {[%emt 0:00:50]} Qd8 {[%emt 0:00:15]} 14. Rg1 {[%emt 0:01:23]} Ne5 {[%emt 0:03:39]} 15. Qf5 {[%emt 0:05:47]} Ng6 {[%emt 0:00:02]} 16. Bd3 {[%emt 0:01:31]} Ra6 {[%emt 0:00:23]} 17. O-O-O {[%emt 0:03:34]} Rae6 {[%emt 0:02:40]} 18. Bc2 {[%emt 0:02:03]} c6 {[%emt 0:04:44]} 19. Nf4 {[%emt 0:00:02]} Re5 {[%emt 0:00:08]} 20. Qd3 {[%emt 0:00:17]} d5 {[%emt 0:00:56]} 21. Nxg6 {[%emt 0:03:42]} Bf5 {[%emt 0:00:02]} 22. Nxe5 {[%emt 0:00:03]} Bxd3 {[%emt 0:00:03]} 23. Nxd3 {[%emt 0:00:33]} dxc4 {[%emt 0:00:25]} 24. bxc4 {[%emt 0:00:02]} Re4 {[%emt 0:00:15]} 25. Ne5 {[%emt 0:00:15]} Rh4 {[%emt 0:00:08]} 26. Rg3 {[%emt 0:00:35]} b5 {[%emt 0:00:11]} 27. Rdg1 {[%emt 0:00:08]} bxc4 {[%emt 0:00:08]} 28. Nxf3 {[%emt 0:00:08]} Rh5 {[%emt 0:00:17]} 29. Rxg7+ {[%emt 0:00:19]} Bxg7 {[%emt 0:00:00]} 30. Bxg7 {[%emt 0:00:22]} Qd5 {[%emt 0:00:07]} 31. Bf6+ {[%emt 0:00:40]} Kf8 {[%emt 0:00:01]} 32. Bh7 {[%emt 0:00:03]} Ke8 {[%emt 0:00:27]} 33. Rg8+ {[%emt 0:00:07]} Kd7 {[%emt 0:00:01]} 34. Rd8+ {[%emt 0:00:02]} Ke6 {[%emt 0:00:08]} 35. Rxd5 {[%emt 0:00:02]} cxd5 {[%emt 0:00:03]} 36. Bh4 {[%emt 0:00:14]} f5 {[%emt 0:00:31]} 37. Bg6 {[%emt 0:00:06]} 1-0

[Event "Chinese League Div-A Rapid 2022"]
[Site "Fuling,Chongqing"]
[Date "2022.09.16"]
[Round "9.23"]
[White "Ding, Liren"]
[Black "Xiao, Tong"]
[Result "1/2-1/2"]
[ECO "B81"]
[WhiteElo "2808"]
[BlackElo "2027"]
[Annotator "ChessBase"]
[PlyCount "89"]
[EventDate "2022.09.07"]
[EventType "team-tourn"]
[EventCountry "CHN"]
[SourceTitle "playchess.com"]
[Source "ChessBase"]
[SourceQuality "1"]
[TimeControl "1500+10"]

1. Nf3 {[%emt 0:00:04]} c5 {[%emt 0:00:05]} 2. e4 {[%emt 0:00:08]} d6 {[%emt 0:00:11]} 3. d4 {[%emt 0:00:02]} cxd4 {[%emt 0:00:02]} 4. Nxd4 {[%emt 0:00:02]} Nf6 {[%emt 0:00:02]} 5. Nc3 {[%emt 0:00:01]} a6 {[%emt 0:00:02]} 6. h3 {[%emt 0:00:08]} e6 {[%emt 0:00:07]} 7. g4 {[%emt 0:00:01]} d5 {[%emt 0:00:03]} 8. Nde2 {[%emt 0:00:07]} Nxe4 {[%emt 0:00:32]} 9. Nxe4 {[%emt 0:00:03]} dxe4 {[%emt 0:00:02]} 10. Qxd8+ {[%emt 0:00:03]} Kxd8 {[%emt 0:00:02]} 11. Be3 {[%emt 0:00:07]} Bd7 {[%emt 0:00:47]} 12. O-O-O {[%emt 0:00:05]} Ke8 {[%emt 0:00:10]} 13. Bg2 {[%emt 0:04:15]} Bc6 {[%emt 0:00:08]} 14. Nd4 {[%emt 0:04:18]} Bc5 {[%emt 0:02:14]} 15. Rhe1 {[%emt 0:00:04]} Bd5 {[%emt 0:01:21]} 16. c4 {[%emt 0:01:05]} Bxc4 {[%emt 0:00:29]} 17. Bxe4 {[%emt 0:00:02]} Nd7 {[%emt 0:02:43]} 18. b3 {[%emt 0:04:44]} Bb5 {[%emt 0:04:01]} 19. Bxb7 {[%emt 0:00:02]} Rb8 {[%emt 0:02:54]} 20. Bg2 {[%emt 0:00:06]} Bb4 {[%emt 0:01:54]} 21. Nxb5 {[%emt 0:04:22]} axb5 {[%emt 0:00:58]} 22. Re2 {[%emt 0:00:23]} Ke7 {[%emt 0:00:14]} 23. Kb2 {[%emt 0:00:51]} Rbc8 {[%emt 0:01:14]} 24. a3 {[%emt 0:00:25]} Bc5 {[%emt 0:00:13]} 25. Bg5+ {[%emt 0:00:18]} f6 {[%emt 0:01:00]} 26. Bc1 {[%emt 0:00:31]} Rhd8 {[%emt 0:00:34]} 27. f4 {[%emt 0:01:13]} Nb6 {[%emt 0:00:41]} 28. Rxd8 {[%emt 0:00:03]} Rxd8 {[%emt 0:00:04]} 29. Bd2 {[%emt 0:00:43]} Rd3 {[%emt 0:00:42]} 30. Kc2 {[%emt 0:00:09]} Rd8 {[%emt 0:00:15]} 31. Kb2 {[%emt 0:00:22]} Rd3 {[%emt 0:00:04]} 32. Bc6 {[%emt 0:01:39]} Bxa3+ {[%emt 0:00:28]} 33. Kxa3 {[%emt 0:00:02]} Nc4+ {[%emt 0:00:02]} 34. Kb4 {[%emt 0:00:01]} Nxd2 {[%emt 0:00:05]} 35. Bxb5 {[%emt 0:00:15]} Rxb3+ {[%emt 0:00:10]} 36. Ka4 {[%emt 0:02:06]} Rb2 {[%emt 0:00:03]} 37. Bd3 {[%emt 0:00:01]} Kd6 {[%emt 0:00:51]} 38. Ka5 {[%emt 0:00:57]} g6 {[%emt 0:01:40]} 39. Ka6 {[%emt 0:00:03]} e5 {[%emt 0:00:06]} 40. g5 {[%emt 0:00:16]} fxg5 {[%emt 0:00:54]} 41. fxe5+ {[%emt 0:00:01]} Ke6 {[%emt 0:00:33]} 42. Ka7 {[%emt 0:00:03]} h5 {[%emt 0:00:36]} 43. Bxg6 {[%emt 0:00:04]} Nc4 {[%emt 0:00:01]} 44. Rxb2 {[%emt 0:00:06]} Nxb2 {[%emt 0:00:02]} 45. Bxh5 {[%emt 0:00:01]} 1/2-1/2

[Event "Chinese League Div-A Rapid 2022"]
[Site "Fuling,Chongqing"]
[Date "2022.09.16"]
[Round "9.24"]
[White "Zhao, Shengxin"]
[Black "Qiu, Mengjie"]
[Result "1-0"]
[ECO "E52"]
[WhiteElo "2112"]
[BlackElo "2149"]
[Annotator "TA"]
[PlyCount "103"]
[EventDate "2022.09.07"]
[EventType "team-tourn"]
[EventCountry "CHN"]
[SourceTitle "playchess.com"]
[Source "ChessBase"]
[SourceQuality "1"]
[TimeControl "1500+10"]

{[%evp 11,103,8,12,2,38,34,37,43,110,0,0,0,0,0,0,0,39,35,104,91,336,349,337,344,352,348,338,293,287,301,291,298,354,360,336,354,363,354,362,363,344,353,354,361,345,341,355,302,302,279,312,288,300,299,304,289,295,290,308,304,413,413,412,412,412,412,412,404,404,396,387,348,461,439,667,665,649,582,889,885,794,724,12845,12845,12845,12845,12846,12846,12847,12846,12847,12848,29997,29998]} 1. d4 {[%emt 0:00:02]} Nf6 {[%emt 0:00:03]} 2. c4 {[%emt 0:00:12]} e6 {[%emt 0:00:02]} 3. Nc3 {[%emt 0:00:11]} Bb4 {[%emt 0:00:05]} 4. e3 {[%emt 0:00:12]} O-O {[%emt 0:00:07]} 5. Bd3 {[%emt 0:00:19]} d5 {[%emt 0:00:07]} 6. Nf3 {[%emt 0:00:45]} b6 {[%emt 0:00:03]} 7. a3 {[%emt 0:01:50] E52: Nimzo-Indian: Rubinstein: 4...0-0 5 Nf3 d5 6 Bd3 b6.} Bd6 {[%emt 0:00:05]} 8. e4 {[%emt 0:00:23]} dxe4 {[%emt 0:01:32]} 9. Nxe4 {[%emt 0:00:13] White is slightly better.} Bb7 {[%emt 0:00:19] [#]} (9... Nbd7 $14) 10. Nxd6 {[%emt 0:00:23] [#]} (10. Nxf6+ $1 $16 gxf6 11. Bh6) 10... Qxd6 $146 {[%emt 0:00:30]} ({Predecessor:} 10... cxd6 11. Bg5 Nbd7 12. O-O Rc8 13. Re1 d5 14. b3 Qc7 15. Rc1 Qd6 16. Ne5 dxc4 17. bxc4 Nxe5 18. dxe5 {0-1 (40) Stuchly,O (1979)-Cip,D (2143) Stare Mesto 2015}) 11. O-O {[%emt 0:07:07]} Nbd7 {[%emt 0:02:07]} 12. Be2 {[%emt 0:10:03]} Ng4 {[%emt 0:01:54] Hoping for ...Bxf3.} 13. g3 {[%emt 0:00:35]} h6 {[%emt 0:01:08]} (13... c5 $5 {[%cal Rd6c6]}) 14. Bf4 {[%emt 0:00:30]} Qc6 {[%emt 0:00:56]} (14... e5 $14 15. dxe5 Ngxe5) 15. d5 $16 {[%emt 0:00:33]} exd5 {[%emt 0:00:20] Black cannot hold the game after this.} (15... Qc5 $16) 16. Nd4 $1 $18 {[%emt 0:00:14][%csl LRc6,LRg4][%mdl 64] [#] Discovered Attack} Qf6 {[%emt 0:01:32]} 17. Bxg4 {[%emt 0:00:09]} Ne5 {[%emt 0:00:16]} 18. Bxe5 {[%emt 0:00:13]} Qxe5 {[%emt 0:00:02]} 19. Bf3 {[%emt 0:01:28]} Rad8 {[%emt 0:00:14]} 20. cxd5 {[%emt 0:00:32]} ({Don't play} 20. Re1 $6 Qf6 $18) 20... Bxd5 {[%emt 0:00:10]} 21. Bxd5 {[%emt 0:00:10]} Rxd5 {[%emt 0:00:26]} 22. Nc6 {[%emt 0:00:23][%csl LRa7,LRe5]} Rxd1 {[%emt 0:00:19]} 23. Nxe5 {[%emt 0:00:02]} Rd2 {[%emt 0:01:00]} 24. b4 {[%emt 0:00:15]} Re8 {[%emt 0:00:30]} 25. Rfe1 {[%emt 0:00:20]} Rc2 {[%emt 0:00:29]} 26. b5 {[%emt 0:00:38]} Rc5 {[%emt 0:01:09]} 27. Nc6 {[%emt 0:00:49]} Rxe1+ {[%emt 0:01:01]} 28. Rxe1 {[%emt 0:00:01]} Rxb5 {[%emt 0:00:09][%mdl 4096] Endgame KRN-KR} 29. Re8+ {[%emt 0:00:04]} Kh7 {[%emt 0:00:02]} 30. Nxa7 {[%emt 0:00:40]} Ra5 {[%emt 0:00:47]} 31. Nc6 {[%emt 0:00:05]} Rxa3 {[%emt 0:00:02]} 32. Re7 {[%emt 0:00:02][%csl LRc7,LRf7]} Rc3 {[%emt 0:00:05]} 33. Nd4 {[%emt 0:00:49]} ({Not} 33. Rxc7 b5 $11) 33... c5 {[%emt 0:01:02]} 34. Nb5 {[%emt 0:00:01]} Rb3 {[%emt 0:01:40] And now ...Rb1+ would win.} 35. Nd6 {[%emt 0:00:01]} b5 {[%emt 0:01:57]} 36. Re5 {[%emt 0:00:05]} b4 {[%emt 0:01:56]} 37. Rxc5 {[%emt 0:00:02]} Kg6 {[%emt 0:00:35]} 38. Rb5 {[%emt 0:00:10]} Rb1+ {[%emt 0:01:38]} 39. Kg2 {[%emt 0:00:01]} Kf6 {[%emt 0:01:02]} 40. Ne4+ {[%emt 0:00:05]} Ke6 {[%emt 0:00:23]} 41. Rb6+ {[%emt 0:00:07]} Ke5 {[%emt 0:00:08]} 42. Nd2 {[%emt 0:00:03]} Rd1 {[%emt 0:00:25]} (42... Rc1 $142 43. Rxb4 Kd6) 43. Nf3+ {[%emt 0:00:03]} Kf5 {[%emt 0:00:37]} 44. Rxb4 {[%emt 0:00:07]} g5 {[%emt 0:00:18]} 45. Rb6 {[%emt 0:00:11]} f6 {[%emt 0:00:13]} 46. g4+ {[%emt 0:00:14]} Kxg4 {[%emt 0:00:31]} 47. Rxf6 {[%emt 0:00:02]} Kh5 {[%emt 0:00:06]} 48. Ne5 {[%emt 0:00:10] Threatening mate with h3.} Rd5 {[%emt 0:01:22]} 49. Nf7 {[%emt 0:00:09]} Kh4 {[%emt 0:00:20]} 50. Rxh6+ {[%emt 0:00:06]} Kg4 {[%emt 0:00:03]} 51. Rf6 {[%emt 0:00:12] White wants to mate with f3+.} Kh5 {[%emt 0:01:22]} 52. h3 {[%emt 0:00:14] Weighted Error Value: White=0.11 (very precise) /Black=0.33} 1-0

[Event "Chinese League Div-A Rapid 2022"]
[Site "Fuling,Chongqing"]
[Date "2022.09.16"]
[Round "9.25"]
[White "Zhou, Guijue"]
[Black "Bai, Xue"]
[Result "0-1"]
[ECO "C47"]
[WhiteElo "2225"]
[BlackElo "2123"]
[Annotator "TA"]
[PlyCount "94"]
[EventDate "2022.09.07"]
[EventType "team-tourn"]
[EventCountry "CHN"]
[SourceTitle "playchess.com"]
[Source "ChessBase"]
[SourceQuality "1"]
[TimeControl "1500+10"]

{[%evp 17,94,0,0,0,2,0,8,0,0,0,21,18,17,18,27,20,16,15,16,-17,31,-16,0,-16,-16,-16,-17,-17,-14,-39,-35,-111,-37,-87,-75,-96,-91,-84,-93,-84,-99,-91,-97,-242,-247,-229,-181,-188,-170,-277,-274,-224,-141,-136,-151,-250,-239,-266,-256,-367,-306,-559,-348,-344,-322,-428,-421,-960,-781,-29963,-29963,-29978,-29968,-29969,-29970,-29968,-29967,-29970,-29972]} 1. e4 {[%emt 0:00:03]} e5 {[%emt 0:00:02]} 2. Nf3 {[%emt 0:00:04]} Nc6 {[%emt 0:00:02]} 3. Nc3 {[%emt 0:00:02]} Nf6 {[%emt 0:00:08]} 4. d4 {[%emt 0:00:05]} exd4 {[%emt 0:00:07]} 5. Nxd4 {[%emt 0:00:02]} Bb4 {[%emt 0:00:02]} 6. Nxc6 {[%emt 0:00:03]} bxc6 {[%emt 0:00:03]} 7. Bd3 {[%emt 0:00:02]} d5 {[%emt 0:00:05]} 8. exd5 {[%emt 0:00:02]} cxd5 {[%emt 0:00:04] 8...0-0 is more fashionable.} 9. O-O {[%emt 0:00:02]} O-O {[%emt 0:00:04]} 10. h3 {[%emt 0:00:01] C47: Scotch Four Knights and Four Knights with 4 g3.} c6 {[%emt 0:00:44]} 11. Qf3 {[%emt 0:00:03]} Rb8 {[%emt 0:01:26]} 12. Ne2 {[%emt 0:00:02] The position is equal.} Bd6 {[%emt 0:01:07]} 13. b3 {[%emt 0:00:07]} Be5 {[%emt 0:00:56]} 14. Bf4 {[%emt 0:01:05]} Qd6 {[%emt 0:01:40]} 15. Rad1 {[%emt 0:02:07]} Bxf4 {[%emt 0:00:17]} 16. Nxf4 {[%emt 0:00:05] [#]} Bb7 $146 {[%emt 0:02:04]} ({Predecessor:} 16... Re8 17. Rfe1 Bd7 18. Nh5 Nxh5 19. Qxh5 g6 20. Qh4 a5 21. a4 Rxe1+ 22. Rxe1 c5 {½-½ (30) Sukandar,I (2387)-Heimann,A (2576) Bad Kissingen 2018}) 17. c4 {[%emt 0:03:17]} d4 {[%emt 0:00:47]} 18. Rfe1 {[%emt 0:01:14]} Rbe8 {[%emt 0:00:39]} (18... c5 $11 {feels stronger.} 19. Qg3 Rfe8) 19. Qg3 {[%emt 0:00:16]} (19. Rxe8 $14 Rxe8 20. Ne2) 19... c5 $11 {[%emt 0:02:06]} 20. Nh5 {[%emt 0:03:17][%csl Gh5][%cal Rg3g7] [#]} Qxg3 {[%emt 0:00:02][%csl Gb7][%cal Rg3g2]} 21. Nxf6+ {[%emt 0:00:02]} gxf6 {[%emt 0:00:01][%csl Gb7][%cal Rg3g2]} 22. fxg3 {[%emt 0:00:01]} Re5 {[%emt 0:00:22]} 23. Kf2 {[%emt 0:01:29]} Rfe8 {[%emt 0:00:05]} 24. Bf1 {[%emt 0:03:39]} (24. Re2 $15) 24... R8e6 {[%emt 0:01:09] Black is more active.} ({Better is} 24... Rxe1 $17 25. Rxe1 Rxe1 26. Kxe1 f5) 25. g4 {[%emt 0:00:32]} (25. Re2 $15) 25... Kg7 $17 {[%emt 0:00:33]} 26. g3 {[%emt 0:01:04]} a5 {[%emt 0:02:33]} 27. Bd3 {[%emt 0:01:46]} Re3 {[%emt 0:04:37]} 28. Rxe3 {[%emt 0:00:14]} Rxe3 {[%emt 0:00:02][%mdl 4096] Endgame KRB-KRB} 29. Be2 {[%emt 0:00:02] Against Rf3+} Be4 {[%emt 0:00:43] Inhibits Rd3.} 30. Rd2 {[%emt 0:00:40] Loses the game.} (30. Re1 $17 {was the only defense.}) 30... Rc3 $19 {[%emt 0:00:34]} 31. Bd1 {[%emt 0:00:38]} f5 {[%emt 0:00:56]} 32. gxf5 {[%emt 0:01:58]} Bxf5 {[%emt 0:00:02]} 33. h4 {[%emt 0:00:12]} (33. Bf3 $142) 33... Be4 {[%emt 0:00:12]} 34. a3 {[%emt 0:00:46]} Bd3 {[%emt 0:01:08]} 35. Rb2 {[%emt 0:02:08] [#]} Kf6 $1 {[%emt 0:01:49]} 36. Ke1 {[%emt 0:01:03]} (36. b4 $17) 36... Be4 {[%emt 0:01:01]} 37. g4 {[%emt 0:00:05]} Ke5 {[%emt 0:00:24]} 38. g5 {[%emt 0:00:25]} (38. b4 {keeps fighting.}) 38... Re3+ {[%emt 0:00:46]} 39. Re2 $2 {[%emt 0:01:15]} (39. Kd2) 39... Rh3 {[%emt 0:00:07] aiming for ...d3.} 40. Rf2 {[%emt 0:00:04]} Bg6 {[%emt 0:01:23] Prevents h5.} 41. Rf6 {[%emt 0:00:43]} Rxh4 {[%emt 0:00:11] Threatens to win with ...Rh1+.} 42. Rc6 {[%emt 0:00:01]} (42. Rf2 $142 Rh1+ 43. Kd2) 42... Ke4 {[%emt 0:00:11] Strongly threatening ...Ke3.} 43. Rxc5 {[%emt 0:00:48]} Ke3 {[%emt 0:00:01][%cal Rh4h1] Black mates.} 44. Be2 {[%emt 0:00:37]} d3 {[%emt 0:00:11]} 45. Re5+ {[%emt 0:00:03]} Be4 {[%emt 0:00:07]} 46. Bxd3 {[%emt 0:00:14]} Kxd3 {[%emt 0:00:03]} 47. c5 {[%emt 0:00:01]} Ke3 {[%emt 0:00:07] Weighted Error Value: White=0.57/Black=0.18 (very precise)} 0-1